bitfinex-derivatives/quotes_SOLF0:USTF0_20250703
["timestamp","ask_amount","ask_price","bid_price","bid_amount"]
[1751533710819,5.37475887,155.71,155.69,6.4206]
[1751533711024,8.74285012,155.72,155.69,6.4206]
[1751533711219,5.37475887,155.71,155.69,6.4206]
[1751533711526,5.37475887,155.7,155.69,6.4206]
[1751533712325,7.69760899,155.7,155.67,43.86]
[1751533712629,2.32285012,155.68,155.67,43.86]
[1751533712823,7.69760899,155.68,155.67,43.86]
[1751533713622,14.11880899,155.68,155.67,43.86]
[1751533713821,11.79595887,155.68,155.67,43.86]
[1751533715426,6.4212,155.68,155.67,43.86]
[1751533715632,11.78981589,155.68,155.67,43.86]
[1751533716828,14.11266601,155.68,155.67,43.86]
[1751533717033,14.11146601,155.68,155.57,43.86]
[1751533717227,2.32285012,155.6,155.57,43.86]
[1751533717431,6.00243156,155.66,155.59,2.32285012]
[1751533717728,5.36831541,155.65,155.63,3.630697]
[1751533717932,9.63312856,155.7,155.63,232.650697]
[1751533718132,6.4213,155.68,155.64,6.4229]
[1751533718433,5.36719263,155.67,155.64,6.4229]
[1751533718730,5.36719263,155.66,155.64,6.4229]
[1751533718927,5.36719263,155.65,155.64,6.4229]
[1751533723840,6.4215,155.68,155.65,6.4221]
[1751533724030,5.33645472,155.67,155.65,6.4221]
[1751533724235,5.33645472,155.66,155.65,6.4221]
[1751533726937,6.4209,155.69,155.67,6.4217]
[1751533727141,5.36187066,155.68,155.67,191.5617]
[1751533733546,5.36187066,155.68,155.67,185.14]
[1751533735048,5.36187066,155.68,155.67,191.5617]
[1751533735747,5.36187066,155.68,155.67,185.14]
[1751533736244,11.78307066,155.68,155.67,185.14]
[1751533738050,5.36187066,155.68,155.65,185.04]
[1751533738351,5.36187066,155.67,155.64,6.4227]
[1751533738650,6.4221,155.67,155.64,50.3027]
[1751533738948,9.63312856,155.7,155.65,185.04]
[1751533739140,6.4221,155.66,155.65,185.04]
[1751533739542,6.422,155.67,155.65,191.4625]
[1751533740049,9.63312856,155.7,155.65,185.04]
[1751533740250,6.4221,155.66,155.65,185.04]
[1751533745751,6.4221,155.66,155.64,50.3027]
[1751533745957,6.4221,155.66,155.65,185.04]
[1751533746756,6.4221,155.66,155.64,50.3027]
[1751533746951,6.4221,155.66,155.65,185.04]
[1751533748551,6.4225,155.65,155.64,43.88]
[1751533748752,23.21433156,155.71,155.6,554.88]
[1751533748753,3.630697,155.66,155.6,598.76]
[1751533748953,5.36454012,155.65,155.61,185.04]
[1751533749153,6.4236,155.63,155.61,191.4639]
[1751533750151,6.4236,155.63,155.61,6.4239]
[1751533750358,3.630697,155.64,155.61,185.04]
[1751533750554,5.36446158,155.63,155.61,185.04]
[1751533750753,6.4239,155.62,155.61,185.04]
[1751533751156,6.4239,155.62,155.61,185.06]
[1751533751759,6.4239,155.62,155.6,605.1843]
[1751533751954,6.4239,155.62,155.61,185.06]
[1751533753763,11.78842655,155.62,155.61,185.06]
[1751533754164,6.4239,155.62,155.61,185.06]
[1751533754561,5.36380006,155.62,155.54,2.2007]
[1751533754865,5.36406505,155.61,155.56,3.630697]
[1751533755068,6.424,155.62,155.59,6.4247]
[1751533755257,5.36386755,155.61,155.6,185.06]
[1751533755658,5.36386755,155.63,155.6,185.06]
[1751533755855,5.36386755,155.62,155.6,185.06]
[1751533756059,6.4244,155.61,155.59,6.4247]
[1751533756255,6.4244,155.61,155.6,185.06]
[1751533761167,6.4239,155.62,155.6,185.06]
[1751533763561,6.4241,155.61,155.6,185.06]
[1751533763766,3.630697,155.64,155.6,185.06]
[1751533763969,6.4239,155.62,155.6,185.06]
[1751533765466,6.4241,155.61,155.6,185.06]
[1751533766276,6.4239,155.62,155.6,185.06]
[1751533766770,6.4241,155.61,155.6,185.06]
[1751533768874,6.4246,155.6,155.58,6.4252]
[1751533769073,3.630697,155.64,155.59,185.1]
[1751533769274,5.31806929,155.63,155.59,185.1]
[1751533769473,6.4244,155.61,155.59,191.5249]
[1751533771270,5.868197,155.65,155.59,185.1]
[1751533771476,5.32157294,155.64,155.59,185.1]
[1751533771675,5.32157294,155.63,155.59,185.1]
[1751533771876,8.74881621,155.63,155.6,8.74941621]
[1751533772076,2.32511621,155.63,155.6,8.74941621]
[1751533772383,5.32251149,155.65,155.61,6.4241]
[1751533772574,2.32511621,155.63,155.6,2.32511621]
[1751533772767,7.6476277,155.63,155.6,2.32511621]
[1751533772971,5.99474163,155.66,155.62,2.32511621]
[1751533773281,119.61900347,156.55,155.65,2.32511621]
[1751533773282,121.9290223,155.79,155.65,2.32511621]
[1751533773478,6.4174,155.78,155.74,8.74371621]
[1751533773676,114.38943904,155.79,155.76,2.32511621]
[1751533773879,112.22903904,155.79,155.75,3.6252531]
[1751533774078,6.4172,155.78,155.75,3.6252531]
[1751533775880,6.4177,155.77,155.75,3.6252531]
[1751533776380,112.22903904,155.79,155.75,10.0435531]
[1751533776581,112.22903904,155.79,155.74,185.66]
[1751533776778,112.22903904,155.79,155.74,192.0785]
[1751533777174,6.4178,155.77,155.74,192.0785]
[1751533786484,6.4178,155.77,155.75,6.4183]
[1751533786684,2.2895,155.79,155.75,3.6252531]
[1751533788189,6.4174,155.78,155.75,10.0434531]
[1751533789296,6.4176,155.77,155.75,10.0434531]
[1751533790593,6.4173,155.78,155.75,10.0434531]
[1751533794199,6.4173,155.78,155.76,6.4179]
[1751533794398,6.4173,155.78,155.75,3.6252531]
[1751533794596,2.2895,155.79,155.75,3.6252531]
[1751533795497,6.4172,155.78,155.75,10.0434531]
[1751533797201,6.4175,155.77,155.74,192.0786]
[1751533797390,6.4175,155.77,155.74,185.66]
[1751533798398,6.4175,155.77,155.75,6.4181]
[1751533800197,3.62672608,155.78,155.61,19.2716]
[1751533800393,3.62672608,155.78,155.69,3.62672608]
[1751533800592,6.4189,155.74,155.7,3.62788651]
[1751533800797,6.4189,155.74,155.72,6.4194]
[1751533800997,6.4189,155.74,155.71,185.36]
[1751533801203,6.4192,155.73,155.71,191.7798]
[1751533801402,6.4192,155.73,155.71,6.4198]
[1751533801701,6.4192,155.73,155.71,191.7598]
[1751533802292,6.419,155.74,155.72,6.4196]
[1751533802492,6.419,155.74,155.71,185.34]
[1751533803402,6.4192,155.73,155.71,6.4198]
[1751533803694,3.62788651,155.77,155.71,185.32]
[1751533804301,3.62788651,155.77,155.71,191.74]
[1751533804700,6.4194,155.73,155.71,191.74]
[1751533805501,6.4189,155.74,155.71,191.74]
[1751533808003,6.4189,155.74,155.71,6.42]
[1751533811403,6.4189,155.74,155.71,6.4199]
[1751533812010,6.4192,155.73,155.71,6.4199]
[1751533816610,6.419,155.74,155.72,6.4196]
[1751533817013,3.62788651,155.77,155.71,6.4198]
[1751533819422,6.4189,155.74,155.72,6.4196]
[1751533820620,6.4192,155.73,155.71,6.4198]
[1751533821821,6.4192,155.73,155.71,8.74150043]
[1751533822024,6.4192,155.73,155.72,6.4196]
[1751533823623,6.419,155.74,155.72,6.4196]
[1751533825924,2.32170043,155.76,155.72,6.4196]
[1751533826222,2.32170043,155.76,155.72,8.74130043]
[1751533826522,2.32152538,155.76,155.72,8.74112538]
[1751533827621,2.2035,155.78,155.72,8.74112538]
[1751533827815,6.419,155.74,155.72,8.74112538]
[1751533828013,6.419,155.74,155.72,2.32152538]
[1751533829125,2.2035,155.78,155.71,46.20152538]
[1751533829322,2.32152538,155.76,155.72,2.32152538]
[1751533830523,6.4184,155.75,155.72,8.74082538]
[1751533831033,6.4189,155.74,155.72,8.74082538]
[1751533833529,6.4186,155.75,155.73,6.4192]
[1751533834930,6.4188,155.74,155.72,6.4194]
[1751533835126,2.32152538,155.76,155.71,46.20152538]
[1751533835329,2.32152538,155.76,155.72,2.32152538]
[1751533835529,6.4186,155.75,155.72,2.32152538]
[1751533835922,5.99901978,155.78,155.74,2.32152538]
[1751533836132,6.4178,155.77,155.76,2.32152538]
[1751533837531,6.4178,155.77,155.75,2.32152538]
[1751533837825,6.4173,155.78,155.76,2.32152538]
[1751533838938,6.4173,155.78,155.76,8.73942538]
[1751533840226,7.91307576,155.82,155.77,2.32152538]
[1751533840431,6.00049923,155.82,155.79,2.32152538]
[1751533840632,8.32202461,155.82,155.78,2.32152538]
[1751533840831,6.4166,155.8,155.78,2.32152538]
[1751533841033,8.32202461,155.82,155.79,2.32152538]
[1751533841331,8.32202461,155.82,155.76,43.88]
[1751533841541,6.4162,155.81,155.78,8.73842538]
[1751533843142,5.9988267,155.82,155.78,8.73842538]
[1751533843338,8.32035208,155.82,155.78,8.73842538]
[1751533844136,11.65437649,155.81,155.78,8.73842538]
[1751533844340,5.23837649,155.8,155.78,8.73842538]
[1751533844542,5.23837649,155.79,155.78,8.73842538]
[1751533848845,5.23837649,155.79,155.78,6.4169]
[1751533849046,5.23837649,155.79,155.78,8.73842538]
[1751533849942,8.32035208,155.83,155.79,6.4167]
[1751533850145,5.23666225,155.82,155.8,2.32152538]
[1751533850447,11.65256225,155.81,155.8,2.32152538]
[1751533851446,5.23666225,155.81,155.8,8.73782538]
[1751533852144,5.23666225,155.81,155.8,2.32152538]
[1751533853350,11.65256225,155.81,155.79,8.73802538]
[1751533853550,5.23666225,155.8,155.79,8.73802538]
[1751533854945,5.23666225,155.8,155.79,2.32152538]
[1751533856549,5.23666225,155.8,155.79,8.73822538]
[1751533857752,5.23666225,155.8,155.78,2.32152538]
[1751533857951,2.32152538,155.81,155.78,2.32152538]
[1751533858552,6.4166,155.8,155.78,8.73862538]
[1751533859247,6.4167,155.79,155.78,2.32152538]
[1751533859450,2.32152538,155.79,155.74,43.82]
[1751533859651,2.32152538,155.77,155.74,43.82]
[1751533860252,6.4183,155.76,155.74,50.2385]
[1751533860448,2.32152538,155.79,155.75,2.32152538]
[1751533860653,2.32152538,155.8,155.77,2.32152538]
[1751533860850,11.65342911,155.79,155.77,2.32152538]
[1751533861051,6.417,155.79,155.77,2.32152538]
[1751533861357,6.417,155.79,155.77,8.73872538]
[1751533861549,6.4165,155.8,155.78,2.32152538]
[1751533861757,2.32152538,155.83,155.79,2.32152538]
[1751533862053,6.4161,155.81,155.79,8.73822538]
[1751533862246,5.23575624,155.8,155.79,8.73822538]
[1751533862958,11.65205624,155.8,155.79,2.32152538]
[1751533863555,11.65205624,155.8,155.78,8.73842538]
[1751533863758,6.4163,155.8,155.78,8.73842538]
[1751533865456,6.4161,155.81,155.79,6.4167]
[1751533865653,5.23180255,155.8,155.79,6.4167]
[1751533866355,5.23180255,155.8,155.78,8.73842538]
[1751533867059,11.64820255,155.8,155.78,8.73842538]
[1751533867259,6.4164,155.8,155.78,8.73842538]
[1751533869361,6.4167,155.79,155.77,6.4173]
[1751533869557,2.32152538,155.81,155.77,2.32152538]
[1751533869752,5.23338147,155.8,155.77,2.32152538]
[1751533870360,11.64998147,155.8,155.78,8.73842538]
[1751533870561,6.4166,155.8,155.78,8.73842538]
[1751533871154,6.4166,155.8,155.78,2.32152538]
[1751533872551,2.32152538,155.82,155.74,228.74]
[1751533872757,7.56124046,155.81,155.77,2.32152538]
[1751533872959,5.23971508,155.8,155.78,2.32152538]
[1751533873264,2.32152538,155.82,155.78,2.32152538]
[1751533873463,10.43063957,155.84,155.74,228.74]
[1751533873464,5.2404291,155.81,155.79,2.32152538]
[1751533873663,5.2404291,155.8,155.78,2.32152538]
[1751533873964,2.32152538,155.82,155.77,2.32152538]
[1751533874153,5.2405095,155.81,155.79,2.32152538]
[1751533874359,5.2405095,155.8,155.79,2.32152538]
[1751533874660,6.4163,155.81,155.79,2.32152538]
[1751533874962,5.2405095,155.8,155.78,8.73842538]
[1751533875166,5.2405095,155.8,155.78,6.4169]
[1751533875357,2.32152538,155.82,155.78,8.73842538]
[1751533875557,6.416,155.81,155.78,8.73842538]
[1751533875865,2.32152538,155.82,155.78,8.73842538]
[1751533876258,6.4165,155.8,155.78,8.73842538]
[1751533876554,6.4165,155.8,155.78,2.32152538]
[1751533876764,6.4161,155.81,155.79,2.32152538]
[1751533876963,6.4161,155.81,155.79,8.73822538]
[1751533877165,6.4161,155.81,155.79,52.55822538]
[1751533878256,6.4161,155.81,155.8,2.32152538]
[1751533879057,6.4161,155.81,155.79,52.55822538]
[1751533880965,8.24563957,155.84,155.8,2.32152538]
[1751533881171,5.98953957,155.84,155.82,2.32152538]
[1751533881464,6.4149,155.84,155.82,2.32152538]
[1751533882054,5.98953957,155.86,155.82,2.32152538]
[1751533882259,10.50446495,155.87,155.8,184.9]
[1751533882459,2.32152538,155.85,155.81,2.32152538]
[1751533883165,6.4149,155.84,155.81,8.73702538]
[1751533883465,2.32152538,155.83,155.79,46.14152538]
[1751533883866,6.4157,155.82,155.8,6.4161]
[1751533884067,2.32152538,155.83,155.79,46.14152538]
[1751533884362,2.32152538,155.82,155.79,43.82]
[1751533884569,6.4159,155.81,155.79,43.82]
[1751533884969,2.32152538,155.82,155.79,43.82]
[1751533885170,6.4159,155.81,155.79,43.82]
[1751533885664,6.4163,155.8,155.79,43.82]
[1751533890068,2.32152538,155.83,155.79,46.14152538]
[1751533890267,8.2487666,155.84,155.79,46.14152538]
[1751533890468,6.0024666,155.84,155.81,2.32152538]
[1751533890769,8.32399198,155.85,155.81,2.32152538]
[1751533890972,6.4147,155.84,155.81,8.73742538]
[1751533891268,8.32399198,155.85,155.81,8.73742538]
[1751533891462,6.415,155.84,155.81,8.73742538]
[1751533891972,8.32399198,155.85,155.81,6.4159]
[1751533891973,6.0024666,155.85,155.81,6.4159]
[1751533892475,6.4147,155.84,155.81,6.4159]
[1751533892675,6.0024666,155.85,155.81,6.4159]
[1751533892969,6.4151,155.83,155.81,6.4159]
[1751533894076,6.4149,155.84,155.82,6.4155]
[1751533894377,6.0024666,155.85,155.79,47.44308673]
[1751533894676,6.4153,155.83,155.79,47.44308673]
[1751533894973,6.0024666,155.85,155.79,43.82]
[1751533895273,6.0024666,155.85,155.8,6.4161]
[1751533895774,6.4155,155.82,155.8,6.4161]
[1751533897384,6.4155,155.82,155.79,50.2365]
[1751533899269,6.4155,155.82,155.8,6.4163]
[1751533903179,6.4155,155.82,155.79,50.2365]
[1751533904479,11.91046258,155.85,155.79,50.2365]
[1751533904780,11.91046258,155.85,155.79,43.82]
[1751533905082,5.91198673,155.85,155.79,43.82]
[1751533905579,6.4162,155.81,155.79,43.82]
[1751533906881,6.4163,155.8,155.79,43.82]
[1751533910581,5.99847585,155.84,155.79,43.82]
[1751533911279,6.4162,155.81,155.79,43.82]
[1751533912483,6.4162,155.81,155.79,50.2367]
[1751533912684,6.4156,155.82,155.79,46.13972132]
[1751533913586,6.4153,155.83,155.81,2.31972132]
[1751533914282,6.4153,155.83,155.8,8.73582132]
[1751533916190,6.4156,155.82,155.8,8.73582132]
[1751533917888,6.4156,155.82,155.8,2.31972132]
[1751533918094,6.4161,155.81,155.79,52.55622132]
[1751533918282,2.31972132,155.83,155.79,52.55622132]
[1751533919393,6.4157,155.82,155.79,52.55622132]
[1751533919890,2.31972132,155.83,155.79,52.55622132]
[1751533920189,2.31972132,155.83,155.79,237.39622132]
[1751533920489,6.416,155.81,155.79,235.0765]
[1751533920691,2.31972132,155.81,155.79,228.66]
[1751533920891,2.31972132,155.82,155.79,228.66]
[1751533921091,6.4163,155.8,155.79,228.66]
[1751533921792,6.4163,155.8,155.79,43.82]
[1751533923789,6.416,155.81,155.79,46.13972132]
[1751533924196,8.31819717,155.83,155.8,2.31972132]
[1751533924197,5.99847585,155.83,155.8,2.31972132]
[1751533924690,6.4158,155.82,155.8,2.31972132]
[1751533924891,8.31819717,155.83,155.8,2.31972132]
[1751533925092,5.99847585,155.83,155.8,2.31972132]
[1751533925296,6.4155,155.82,155.8,2.31972132]
[1751533926189,12.41367585,155.83,155.8,8.73582132]
[1751533926997,6.4155,155.82,155.8,6.4161]
[1751533928798,2.31972132,155.83,155.79,50.2365]
[1751533929098,2.31972132,155.83,155.79,52.55622132]
[1751533929499,6.4156,155.82,155.79,52.55622132]
[1751533930500,6.4156,155.82,155.8,8.73592132]
[1751533932996,6.4156,155.82,155.8,6.4162]
[1751533935701,6.4156,155.82,155.8,8.73592132]
[1751533940306,6.4156,155.82,155.8,6.4162]
[1751533940507,6.4156,155.82,155.8,8.73592132]
[1751533940807,6.4156,155.82,155.8,2.31972132]
[1751533941209,6.4156,155.82,155.8,8.73602132]
[1751533941507,6.4159,155.81,155.8,2.31972132]
[1751533941806,2.31972132,155.84,155.8,2.31972132]
[1751533943213,6.4158,155.82,155.8,2.31972132]
[1751533943904,6.4158,155.82,155.79,50.2365]
[1751533944111,6.4158,155.82,155.79,52.55622132]
[1751533946211,6.4158,155.82,155.8,8.73546667]
[1751533948816,6.4158,155.82,155.8,6.4162]
[1751533949011,6.4158,155.82,155.8,8.73546667]
[1751533950110,6.4158,155.82,155.8,6.4162]
[1751533950307,6.4158,155.82,155.8,8.73546667]
[1751533950915,6.4158,155.82,155.8,8.73535327]
[1751533951118,6.4152,155.83,155.8,8.73535327]
[1751533951819,6.4152,155.83,155.8,52.51535327]
[1751533953720,6.4152,155.83,155.81,8.73495327]
[1751533954324,6.4152,155.83,155.81,2.31915327]
[1751533954822,6.4155,155.82,155.81,2.31915327]
[1751533955023,6.4155,155.82,155.8,52.51525327]
[1751533956920,106.94374406,155.88,155.81,2.31915327]
[1751533956921,6.00743124,155.86,155.81,2.31915327]
[1751533957120,6.00743124,155.86,155.83,2.31915327]
[1751533957315,6.4144,155.85,155.83,2.31915327]
[1751533957520,12.42183124,155.85,155.83,2.31915327]
[1751533958128,6.4144,155.85,155.83,2.31915327]
[1751533958627,6.4144,155.85,155.83,6.4149]
[1751533958821,6.4144,155.85,155.83,8.73405327]
[1751533959018,12.42143124,155.86,155.83,6.4149]
[1751533959223,12.42143124,155.86,155.83,8.73405327]
[1751533959931,6.4144,155.85,155.83,8.73405327]
[1751533960131,6.4144,155.85,155.83,6.4149]
[1751533960423,8.32658451,155.86,155.82,193.55455327]
[1751533960627,6.4146,155.85,155.82,193.55455327]
[1751533961431,6.4146,155.85,155.83,6.415]
[1751533961730,6.4146,155.85,155.82,187.13915327]
[1751533961930,6.4146,155.85,155.83,6.415]
[1751533962231,6.4146,155.85,155.82,187.13915327]
[1751533962432,6.4146,155.85,155.83,6.415]
[1751533964427,6.00743124,155.86,155.84,6.4146]
[1751533964730,8.32658451,155.88,155.84,8.73375327]
[1751533965328,6.414,155.86,155.84,8.73375327]
[1751533965530,6.414,155.86,155.84,2.31915327]
[1751533965826,2.31915327,155.85,155.78,7.98964283]
[1751533966027,2.31915327,155.82,155.79,50.1965]
[1751533966332,8.73475327,155.82,155.79,235.0765]
[1751533966631,6.4156,155.82,155.79,237.39565327]
[1751533966834,8.73435327,155.83,155.8,6.4163]
[1751533967034,8.32658451,155.84,155.8,2.31915327]
[1751533967234,6.00743124,155.85,155.81,2.31915327]
[1751533967434,12.42233124,155.84,155.81,8.73485327]
[1751533969734,14.74148451,155.84,155.81,6.4157]
[1751533970338,6.00743124,155.84,155.82,6.4153]
[1751533971634,12.42213124,155.84,155.81,2.31915327]
[1751533971839,12.42213124,155.84,155.81,8.73495327]
[1751533973443,12.42213124,155.84,155.81,52.51495327]
[1751533974147,6.4153,155.83,155.81,50.1958]
[1751533974343,6.00743124,155.84,155.81,228.58]
[1751533974643,2.31915327,155.83,155.81,228.58]
[1751533975544,6.4155,155.82,155.81,228.58]
[1751533976545,8.73445327,155.83,155.81,228.58]
[1751533976843,6.4153,155.83,155.81,234.9959]
[1751533977146,14.74128451,155.84,155.81,234.9959]
[1751533977339,12.42213124,155.84,155.81,230.89915327]
[1751533978545,12.42213124,155.84,155.82,6.4154]
[1751533979649,14.74128451,155.84,155.81,234.9957]
[1751533980250,6.4152,155.83,155.81,234.9957]
[1751533982352,6.4152,155.83,155.81,228.58]
[1751533983343,8.73465327,155.82,155.81,43.78]
[1751533989856,6.4155,155.82,155.81,43.78]
[1751533990055,8.73465327,155.82,155.81,43.78]
[1751533992659,6.416,155.81,155.79,184.82]
[1751533993758,6.416,155.81,155.79,191.2366]
[1751533994161,6.416,155.81,155.79,184.82]
[1751533996355,8.73515327,155.81,155.79,184.82]
[1751533996758,6.4163,155.8,155.79,184.82]
[1751533996962,6.4163,155.8,155.78,43.8]
[1751533997159,2.31915327,155.81,155.78,43.8]
[1751533997354,2.31915327,155.79,155.78,43.8]
[1751533997862,8.73585327,155.79,155.78,43.8]
[1751534001865,8.23383124,155.82,155.78,43.8]
[1751534002065,2.31915327,155.8,155.78,43.8]
[1751534002266,8.23383124,155.82,155.78,43.8]
[1751534002267,2.31915327,155.79,155.78,43.8]
[1751534002465,8.73585327,155.79,155.78,43.8]
[1751534003356,6.4167,155.79,155.78,43.8]
[1751534003567,8.73585327,155.79,155.78,43.8]
[1751534004067,8.73565327,155.8,155.78,43.8]
[1751534004367,6.4165,155.8,155.78,43.8]
[1751534004559,6.4165,155.8,155.78,52.53625327]
[1751534004765,6.00743124,155.83,155.79,187.15915327]
[1751534004965,6.00743124,155.85,155.82,2.31915327]
[1751534005161,6.4149,155.84,155.82,2.31915327]
[1751534007070,6.4144,155.85,155.82,8.73455327]
[1751534007674,6.4143,155.85,155.82,2.31915327]
[1751534007974,6.4143,155.85,155.81,6.4156]
[1751534008163,6.4149,155.84,155.81,6.4156]
[1751534010579,6.4151,155.83,155.8,10.03878971]
[1751534011079,6.4151,155.83,155.8,6.4162]
[1751534013488,3.62258971,155.86,155.79,190.78788971]
[1751534013791,6.4153,155.83,155.8,6.4161]
[1751534014083,3.62258971,155.86,155.79,190.78788971]
[1751534014487,6.4153,155.83,155.8,6.4161]
[1751534015185,6.4153,155.83,155.81,6.4159]
[1751534015386,6.4148,155.84,155.81,6.4159]
[1751534020790,6.4151,155.83,155.81,6.4159]
[1751534022492,6.4148,155.84,155.81,6.4159]
[1751534023983,5.99622153,155.87,155.82,43.78]
[1751534024289,8.23182153,155.88,155.82,43.78]
[1751534024590,6.4141,155.86,155.84,6.4146]
[1751534026384,6.4141,155.86,155.83,6.4148]
[1751534026588,112.12864032,155.89,155.82,43.78]
[1751534026785,112.12864032,155.89,155.82,47.40258971]
[1751534026989,6.4137,155.87,155.84,6.4146]
[1751534027592,6.4128,155.89,155.86,10.03628971]
[1751534027898,2.3170394,155.91,155.87,2.3170394]
[1751534028189,2.3170394,155.9,155.86,2.3170394]
[1751534028390,2.3170394,155.92,155.87,2.3170394]
[1751534028696,6.412,155.91,155.88,8.7298394]
[1751534029398,6.4118,155.91,155.88,8.7298394]
[1751534029898,6.4118,155.91,155.88,6.4128]
[1751534030192,6.4116,155.92,155.87,43.78]
[1751534030397,5.99622153,155.93,155.87,43.78]
[1751534030999,5.99622153,155.95,155.88,3.62001242]
[1751534031195,5.99622153,155.96,155.9,3.62001242]
[1751534031395,6.41,155.96,155.93,6.4107]
[1751534031796,13.90123395,155.98,155.92,43.8]
[1751534031991,5.99622153,155.98,155.92,47.42001242]
[1751534032199,13.97363395,156.04,155.92,43.8]
[1751534032392,6.4079,156.01,155.96,10.02931242]
[1751534032598,3.62001242,156.0,155.93,4.3689]
[1751534032794,3.62001242,156.0,155.94,229.5]
[1751534033098,3.62001242,155.98,155.94,229.5]
[1751534033296,3.62001242,156.0,155.94,229.5]
[1751534033501,3.62001242,156.0,155.94,235.9103]
[1751534033802,3.62001242,156.04,155.97,3.62001242]
[1751534033994,6.4076,156.02,155.97,10.02931242]
[1751534034190,3.62001242,156.04,155.97,10.02931242]
[1751534034597,6.4078,156.01,155.97,3.62001242]
[1751534035399,6.4078,156.01,155.97,10.02901242]
[1751534037496,6.4078,156.01,155.98,6.4088]
[1751534037699,6.4074,156.02,155.98,6.4088]
[1751534038001,6.4074,156.02,155.99,229.32]
[1751534038192,2.1096,156.06,155.99,235.7283]
[1751534038391,10.91371905,156.06,155.99,235.7283]
[1751534038598,5.18410663,156.05,155.99,235.7283]
[1751534038799,6.4075,156.02,155.99,229.32]
[1751534040197,2.1096,156.06,155.99,229.32]
[1751534040504,3.62001242,156.04,155.99,229.32]
[1751534040803,6.4079,156.01,155.99,229.32]
[1751534042307,2.1096,156.06,155.99,232.94001242]
[1751534042512,7.30192517,156.06,155.99,232.94001242]
[1751534043004,6.4068,156.04,155.99,232.94001242]
[1751534043203,8.77848719,156.07,155.99,232.94001242]
[1751534043507,6.4062,156.05,156.01,6.4074]
[1751534044007,6.4062,156.05,156.02,6.4071]
[1751534044199,6.4062,156.05,156.03,185.32]
[1751534044607,6.4064,156.04,156.03,185.32]
[1751534045100,6.4064,156.04,155.98,3.62001242]
[1751534045101,6.4069,156.03,155.98,3.62001242]
[1751534045304,6.4069,156.03,155.99,229.06]
[1751534045506,6.4069,156.03,155.98,229.1]
[1751534045507,3.62001242,156.03,155.98,229.1]
[1751534046398,3.62001242,156.03,155.99,185.34]
[1751534046802,6.4073,156.02,155.99,185.34]
[1751534047214,3.62001242,156.03,155.99,185.34]
[1751534048111,6.4081,156.01,155.98,229.12]
[1751534048305,3.62001242,156.03,155.98,229.12]
[1751534048511,3.62001242,156.03,155.98,229.1]
[1751534049311,3.62001242,156.03,155.98,43.76]
[1751534049512,3.62001242,156.03,155.98,229.1]
[1751534050111,8.81244484,156.03,155.98,229.1]
[1751534050310,6.4085,155.99,155.98,43.76]
[1751534050513,10.02851242,155.99,155.98,43.76]
[1751534051504,6.4093,155.97,155.96,185.34]
[1751534051714,6.4093,155.97,155.96,185.32]
[1751534053613,3.62001242,155.97,155.94,43.76]
[1751534053812,3.62001242,155.95,155.92,185.34]
[1751534054108,4.412,155.98,155.93,185.42]
[1751534054510,2.2376,155.98,155.93,185.42]
[1751534054913,6.4095,155.97,155.94,6.4102]
[1751534055415,3.62001242,156.02,155.95,43.76]
[1751534056214,6.4084,156.0,155.96,6.4095]
[1751534056414,6.4084,156.0,155.97,185.64]
[1751534057115,6.4085,155.99,155.97,185.64]
[1751534059109,6.4089,155.98,155.97,185.6]
[1751534059316,3.62001242,156.02,155.97,185.6]
[1751534059512,2.1744,156.03,155.97,185.6]
[1751534059713,6.4083,156.0,155.97,185.6]
[1751534060416,3.62001242,156.02,155.97,185.54]
[1751534060913,6.4085,155.99,155.97,185.54]
[1751534062214,5.79441242,156.03,155.97,185.54]
[1751534062820,6.4083,156.0,155.97,185.54]
[1751534063821,6.4086,155.99,155.97,185.54]
[1751534064425,3.62001242,156.01,155.97,185.54]
[1751534065215,3.62001242,156.01,155.93,3.62001242]
[1751534065422,3.62001242,156.0,155.94,229.54]